[Event "Titled Tuesday Blitz December 13 Early 2022"]
[White "Jiganchine, Roman"]
[Black "Lewtak, Damian"]
[WhiteFideId "2603667"]
[BlackFideId "1141724"]
[WhiteElo "2331"]
[BlackElo "2330"]
[Result "0-1"]
[Round "01"]
[TimeControl "180+1"]
[Date "2022.12.14"]
[WhiteClock "0:00:03"]
[BlackClock "0:00:17"]

1. e4 {[%clk 0:02:57]}  c5 {[%clk 0:03:00]} 2. Nf3 {[%clk 0:02:56]}  d6 {[%clk 0:03:00]} 3. Bb5+ {[%clk 0:02:56]}  Bd7 {[%clk 0:03:00]} 4. Bxd7+ {[%clk 0:02:55]}  Qxd7 {[%clk 0:03:00]} 5. c4 {[%clk 0:02:55]}  g6 {[%clk 0:02:58]} 6. Nc3 {[%clk 0:02:52]}  Bg7 {[%clk 0:02:58]} 7. d4 {[%clk 0:02:50]}  cxd4 {[%clk 0:02:58]} 8. Nxd4 {[%clk 0:02:50]}  Nf6 {[%clk 0:02:59]} 9. f3 {[%clk 0:02:43]}  O-O {[%clk 0:02:57]} 10. Be3 {[%clk 0:02:43]}  Nc6 {[%clk 0:02:48]} 11. Qd2 {[%clk 0:02:42]}  e6 {[%clk 0:02:47]} 12. O-O {[%clk 0:01:44]}  d5 {[%clk 0:02:45]} 13. cxd5 {[%clk 0:01:36]}  exd5 {[%clk 0:02:46]} 14. Nxc6 {[%clk 0:01:33]}  bxc6 {[%clk 0:02:46]} 15. exd5 {[%clk 0:01:25]}  Nxd5 {[%clk 0:02:43]} 16. Nxd5 {[%clk 0:01:22]}  cxd5 {[%clk 0:02:32]} 17. Rad1 {[%clk 0:01:13]}  Rfe8 {[%clk 0:02:27]} 18. Bd4 {[%clk 0:01:07]}  Rac8 {[%clk 0:01:55]} 19. Bxg7 {[%clk 0:01:06]}  Kxg7 {[%clk 0:01:55]} 20. Qd4+ {[%clk 0:01:01]}  Kg8 {[%clk 0:01:55]} 21. Rfe1 {[%clk 0:00:56]}  Qb5 {[%clk 0:01:35]} 22. b3 {[%clk 0:00:48]}  a5 {[%clk 0:01:29]} 23. h4 {[%clk 0:00:46]}  Rc2 {[%clk 0:01:11]} 24. a4 {[%clk 0:00:38]}  Qc6 {[%clk 0:00:47]} 25. h5 {[%clk 0:00:34]}  Rxe1+ {[%clk 0:00:39]} 26. Rxe1 {[%clk 0:00:34]}  gxh5 {[%clk 0:00:36]} 27. Re5 {[%clk 0:00:27]}  Rc1+ {[%clk 0:00:32]} 28. Kh2 {[%clk 0:00:25]}  Qd6 {[%clk 0:00:32]} 29. Qf4 {[%clk 0:00:16]}  Rc6 {[%clk 0:00:17]} 30. Re8+ {[%clk 0:00:10]}  Kg7 {[%clk 0:00:17]} 31. Qxd6 {[%clk 0:00:03]}  Rxd6 {[%clk 0:00:17]} 32. Ra8 {[%clk 0:00:03]}  d4 {[%clk 0:00:17]} 0-1


[Site "https://www.chess.com"]

[Event "Titled Tuesday Blitz December 13 Early 2022"]
[White "Kazakouski, Valery"]
[Black "Vovk, Orest"]
[WhiteFideId "13507443"]
[BlackFideId "14113490"]
[WhiteElo "2516"]
[BlackElo "2215"]
[Result "1-0"]
[Round "01"]
[TimeControl "180+1"]
[Date "2022.12.14"]
[WhiteClock "0:00:13"]
[BlackClock "0:00:07"]

1. Nf3 {[%clk 0:03:00]}  h6 {[%clk 0:02:56]} 2. b3 {[%clk 0:02:58]}  g5 {[%clk 0:02:50]} 3. Bb2 {[%clk 0:02:58]}  Nf6 {[%clk 0:02:50]} 4. Bxf6 {[%clk 0:02:58]}  exf6 {[%clk 0:02:50]} 5. e3 {[%clk 0:02:44]}  Bg7 {[%clk 0:02:43]} 6. d4 {[%clk 0:02:43]}  d5 {[%clk 0:02:19]} 7. Bd3 {[%clk 0:02:42]}  c6 {[%clk 0:02:19]} 8. O-O {[%clk 0:02:40]}  Be6 {[%clk 0:01:56]} 9. c4 {[%clk 0:02:40]}  Nd7 {[%clk 0:01:52]} 10. Nc3 {[%clk 0:02:39]}  Nb6 {[%clk 0:01:49]} 11. cxd5 {[%clk 0:02:36]}  cxd5 {[%clk 0:01:49]} 12. Ne2 {[%clk 0:02:31]}  O-O {[%clk 0:01:48]} 13. Rc1 {[%clk 0:02:26]}  Rc8 {[%clk 0:01:47]} 14. Rxc8 {[%clk 0:02:23]}  Qxc8 {[%clk 0:01:47]} 15. Qb1 {[%clk 0:02:23]}  Qd7 {[%clk 0:01:46]} 16. Ng3 {[%clk 0:02:22]}  Rc8 {[%clk 0:01:45]} 17. Rc1 {[%clk 0:02:18]}  Rxc1+ {[%clk 0:01:29]} 18. Qxc1 {[%clk 0:02:18]}  Qc6 {[%clk 0:01:25]} 19. Qxc6 {[%clk 0:02:13]}  bxc6 {[%clk 0:01:26]} 20. Nf5 {[%clk 0:02:13]}  Bxf5 {[%clk 0:01:21]} 21. Bxf5 {[%clk 0:02:13]}  Bf8 {[%clk 0:01:22]} 22. Kf1 {[%clk 0:02:08]}  c5 {[%clk 0:01:22]} 23. dxc5 {[%clk 0:02:07]}  Bxc5 {[%clk 0:01:23]} 24. Ke2 {[%clk 0:02:07]}  Kf8 {[%clk 0:01:22]} 25. Kd3 {[%clk 0:02:00]}  Ke7 {[%clk 0:01:21]} 26. Nd4 {[%clk 0:01:59]}  Bxd4 {[%clk 0:01:17]} 27. exd4 {[%clk 0:01:51]}  Kd6 {[%clk 0:01:18]} 28. Kc3 {[%clk 0:01:48]}  Kc6 {[%clk 0:00:59]} 29. Kb4 {[%clk 0:01:47]}  Na8 {[%clk 0:00:53]} 30. Ka5 {[%clk 0:01:43]}  Nc7 {[%clk 0:00:53]} 31. Kb4 {[%clk 0:01:22]}  Ne6 {[%clk 0:00:44]} 32. Kc3 {[%clk 0:01:22]}  a5 {[%clk 0:00:39]} 33. g3 {[%clk 0:01:20]}  Ng7 {[%clk 0:00:35]} 34. Bc2 {[%clk 0:01:16]}  Ne6 {[%clk 0:00:31]} 35. a3 {[%clk 0:01:16]}  Nc7 {[%clk 0:00:30]} 36. Bd3 {[%clk 0:01:16]}  Ne6 {[%clk 0:00:30]} 37. Bf1 {[%clk 0:01:12]}  f5 {[%clk 0:00:28]} 38. Bd3 {[%clk 0:01:12]}  f4 {[%clk 0:00:28]} 39. g4 {[%clk 0:01:10]}  Nd8 {[%clk 0:00:17]} 40. f3 {[%clk 0:01:08]}  Nb7 {[%clk 0:00:17]} 41. b4 {[%clk 0:01:05]}  Kb6 {[%clk 0:00:16]} 42. Kb3 {[%clk 0:00:27]}  axb4 {[%clk 0:00:16]} 43. Kxb4 {[%clk 0:00:24]}  Na5 {[%clk 0:00:16]} 44. Bb5 {[%clk 0:00:24]}  Nb7 {[%clk 0:00:14]} 45. a4 {[%clk 0:00:23]}  Na5 {[%clk 0:00:08]} 46. Be8 {[%clk 0:00:18]}  f6 {[%clk 0:00:09]} 47. Bd7 {[%clk 0:00:18]}  Nb7 {[%clk 0:00:07]} 48. Be6 {[%clk 0:00:18]}  Kc6 {[%clk 0:00:07]} 49. a5 {[%clk 0:00:18]}  Nd8 {[%clk 0:00:08]} 50. Bf5 {[%clk 0:00:16]}  Nf7 {[%clk 0:00:08]} 51. a6 {[%clk 0:00:13]}  Nd6 {[%clk 0:00:07]} 52. Bd3 {[%clk 0:00:13]}  Kb6 {[%clk 0:00:07]} 53. a7 {[%clk 0:00:13]}  Kc6 {[%clk 0:00:07]} 54. a8=Q+ {[%clk 0:00:13]} 1-0


[Site "https://www.chess.com"]

[Event "Titled Tuesday Blitz December 13 Early 2022"]
[White "Khamdamova, Afruza"]
[Black "Steinberg, Nitzan"]
[WhiteFideId "14210444"]
[BlackFideId "2801795"]
[WhiteElo "2018"]
[BlackElo "2491"]
[Result "0-1"]
[Round "01"]
[TimeControl "180+1"]
[Date "2022.12.14"]
[WhiteClock "0:00:01"]
[BlackClock "0:00:35"]

1. e4 {[%clk 0:02:55]}  c5 {[%clk 0:02:59]} 2. Nf3 {[%clk 0:02:53]}  e6 {[%clk 0:02:58]} 3. d4 {[%clk 0:02:52]}  cxd4 {[%clk 0:02:58]} 4. Nxd4 {[%clk 0:02:52]}  a6 {[%clk 0:02:58]} 5. Be2 {[%clk 0:02:50]}  Nc6 {[%clk 0:02:57]} 6. O-O {[%clk 0:02:50]}  Qc7 {[%clk 0:02:57]} 7. Nc3 {[%clk 0:02:50]}  Nf6 {[%clk 0:02:57]} 8. Be3 {[%clk 0:02:49]}  Be7 {[%clk 0:02:58]} 9. Qd2 {[%clk 0:02:31]}  O-O {[%clk 0:02:56]} 10. Rad1 {[%clk 0:02:30]}  d6 {[%clk 0:02:52]} 11. Nxc6 {[%clk 0:02:27]}  bxc6 {[%clk 0:02:50]} 12. f4 {[%clk 0:02:20]}  d5 {[%clk 0:02:43]} 13. Bf3 {[%clk 0:02:17]}  a5 {[%clk 0:02:40]} 14. Kh1 {[%clk 0:02:05]}  Rb8 {[%clk 0:02:34]} 15. b3 {[%clk 0:01:59]}  Ba6 {[%clk 0:02:31]} 16. Rfe1 {[%clk 0:01:55]}  Bb4 {[%clk 0:02:28]} 17. e5 {[%clk 0:01:46]}  Nd7 {[%clk 0:02:22]} 18. a3 {[%clk 0:01:26]}  Bxa3 {[%clk 0:02:21]} 19. Na4 {[%clk 0:01:25]}  Be7 {[%clk 0:02:12]} 20. c4 {[%clk 0:01:23]}  Rxb3 {[%clk 0:02:10]} 21. cxd5 {[%clk 0:01:22]}  cxd5 {[%clk 0:02:10]} 22. Rc1 {[%clk 0:01:22]}  Bc4 {[%clk 0:02:03]} 23. Qd4 {[%clk 0:01:13]}  Rc8 {[%clk 0:01:56]} 24. Bd1 {[%clk 0:01:10]}  Rd3 {[%clk 0:01:42]} 25. Qa1 {[%clk 0:01:07]}  Bb4 {[%clk 0:01:38]} 26. Nc3 {[%clk 0:01:03]}  d4 {[%clk 0:01:33]} 27. Bxd4 {[%clk 0:00:42]}  Rxd4 {[%clk 0:01:29]} 28. Nb5 {[%clk 0:00:42]}  Qb6 {[%clk 0:01:14]} 29. Nxd4 {[%clk 0:00:40]}  Bxe1 {[%clk 0:01:09]} 30. Be2 {[%clk 0:00:37]}  Bf2 {[%clk 0:01:01]} 31. Nb5 {[%clk 0:00:25]}  Qxb5 {[%clk 0:00:55]} 32. Bxc4 {[%clk 0:00:20]}  Rxc4 {[%clk 0:00:56]} 33. Rd1 {[%clk 0:00:18]}  Bd4 {[%clk 0:00:52]} 34. Qa3 {[%clk 0:00:16]}  h6 {[%clk 0:00:49]} 35. h3 {[%clk 0:00:14]}  Nc5 {[%clk 0:00:46]} 36. Qf3 {[%clk 0:00:12]}  Qb7 {[%clk 0:00:41]} 37. Qg4 {[%clk 0:00:10]}  Ne4 {[%clk 0:00:37]} 38. Qh4 {[%clk 0:00:02]}  Nf2+ {[%clk 0:00:37]} 39. Kh2 {[%clk 0:00:02]}  Nxd1 {[%clk 0:00:36]} 40. f5 {[%clk 0:00:01]}  Bxe5+ {[%clk 0:00:35]} 0-1


[Site "https://www.chess.com"]

[Event "Titled Tuesday Blitz December 13 Early 2022"]
[White "Khoroshev, Nikita"]
[Black "Ljukin, Sergei"]
[WhiteFideId "14200287"]
[BlackFideId "14102200"]
[WhiteElo "2354"]
[BlackElo "2312"]
[Result "1-0"]
[Round "01"]
[TimeControl "180+1"]
[Date "2022.12.14"]
[WhiteClock "0:00:47"]
[BlackClock "0:00:15"]

1. d4 {[%clk 0:02:51]}  d5 {[%clk 0:02:57]} 2. c4 {[%clk 0:02:50]}  c6 {[%clk 0:02:56]} 3. Nc3 {[%clk 0:02:44]}  Nf6 {[%clk 0:02:55]} 4. Nf3 {[%clk 0:02:42]}  dxc4 {[%clk 0:02:55]} 5. a4 {[%clk 0:02:42]}  Bf5 {[%clk 0:02:54]} 6. e3 {[%clk 0:02:42]}  e6 {[%clk 0:02:54]} 7. Bxc4 {[%clk 0:02:41]}  Bb4 {[%clk 0:02:53]} 8. O-O {[%clk 0:02:41]}  Nbd7 {[%clk 0:02:52]} 9. Qe2 {[%clk 0:02:41]}  O-O {[%clk 0:02:50]} 10. e4 {[%clk 0:02:34]}  Bg4 {[%clk 0:02:50]} 11. Rd1 {[%clk 0:02:29]}  Qe7 {[%clk 0:02:45]} 12. Bf4 {[%clk 0:02:25]}  Bxf3 {[%clk 0:02:35]} 13. gxf3 {[%clk 0:02:12]}  e5 {[%clk 0:02:33]} 14. dxe5 {[%clk 0:02:13]}  Nxe5 {[%clk 0:02:33]} 15. Bb3 {[%clk 0:02:14]}  Nh5 {[%clk 0:02:25]} 16. Bg3 {[%clk 0:02:13]}  Qg5 {[%clk 0:02:05]} 17. Kh1 {[%clk 0:02:05]}  Nf4 {[%clk 0:01:56]} 18. Qe3 {[%clk 0:01:58]}  Neg6 {[%clk 0:01:55]} 19. Ne2 {[%clk 0:01:56]}  Ne6 {[%clk 0:01:48]} 20. f4 {[%clk 0:01:44]}  Qg4 {[%clk 0:01:07]} 21. f3 {[%clk 0:01:43]}  Bc5 {[%clk 0:00:52]} 22. Qc3 {[%clk 0:01:30]}  Qh5 {[%clk 0:00:19]} 23. f5 {[%clk 0:01:22]}  Bb4 {[%clk 0:00:18]} 24. Qxb4 {[%clk 0:01:01]}  Qxf3+ {[%clk 0:00:17]} 25. Kg1 {[%clk 0:01:02]}  Qxe2 {[%clk 0:00:15]} 26. fxg6 {[%clk 0:00:47]} 1-0


[Site "https://www.chess.com"]

[Event "Titled Tuesday Blitz December 13 Early 2022"]
[White "Kim, Sergey"]
[Black "Akylbekov, Nasyr"]
[WhiteFideId "13700570"]
[BlackFideId "13800353"]
[WhiteElo "2604"]
[BlackElo "2310"]
[Result "1/2-1/2"]
[Round "01"]
[TimeControl "180+1"]
[Date "2022.12.14"]
[WhiteClock "0:00:15"]
[BlackClock "0:00:19"]

1. d4 {[%clk 0:03:00]}  Nf6 {[%clk 0:02:59]} 2. c4 {[%clk 0:02:59]}  e6 {[%clk 0:02:58]} 3. Nc3 {[%clk 0:02:59]}  Bb4 {[%clk 0:02:58]} 4. Qc2 {[%clk 0:02:59]}  c5 {[%clk 0:02:58]} 5. dxc5 {[%clk 0:02:58]}  Bxc5 {[%clk 0:02:59]} 6. Nf3 {[%clk 0:02:58]}  Qb6 {[%clk 0:02:59]} 7. e3 {[%clk 0:02:58]}  Be7 {[%clk 0:03:00]} 8. Bd3 {[%clk 0:02:58]}  O-O {[%clk 0:02:59]} 9. O-O {[%clk 0:02:58]}  d6 {[%clk 0:02:58]} 10. b3 {[%clk 0:02:57]}  Nbd7 {[%clk 0:02:56]} 11. Ne4 {[%clk 0:02:52]}  Nxe4 {[%clk 0:02:51]} 12. Bxe4 {[%clk 0:02:52]}  f5 {[%clk 0:02:52]} 13. Bd3 {[%clk 0:02:51]}  Bf6 {[%clk 0:02:52]} 14. Bb2 {[%clk 0:02:50]}  Bxb2 {[%clk 0:02:51]} 15. Qxb2 {[%clk 0:02:50]}  e5 {[%clk 0:02:49]} 16. Ng5 {[%clk 0:02:30]}  Nc5 {[%clk 0:02:36]} 17. Be2 {[%clk 0:02:22]}  h6 {[%clk 0:02:36]} 18. Nf3 {[%clk 0:02:21]}  Be6 {[%clk 0:02:31]} 19. Rfd1 {[%clk 0:02:17]}  Rad8 {[%clk 0:02:29]} 20. Rac1 {[%clk 0:02:14]}  a5 {[%clk 0:02:27]} 21. Qd2 {[%clk 0:02:03]}  f4 {[%clk 0:02:16]} 22. exf4 {[%clk 0:01:57]}  Rxf4 {[%clk 0:02:16]} 23. Qe3 {[%clk 0:01:56]}  Re4 {[%clk 0:02:00]} 24. Qd2 {[%clk 0:01:54]}  Rf8 {[%clk 0:01:58]} 25. Bf1 {[%clk 0:01:48]}  Rg4 {[%clk 0:01:47]} 26. Be2 {[%clk 0:01:39]}  Ne4 {[%clk 0:01:43]} 27. Qe3 {[%clk 0:01:39]}  Qxe3 {[%clk 0:01:43]} 28. fxe3 {[%clk 0:01:39]}  Ng5 {[%clk 0:00:50]} 29. Nxg5 {[%clk 0:01:34]}  Rxg5 {[%clk 0:00:51]} 30. Rxd6 {[%clk 0:01:33]}  Bh3 {[%clk 0:00:51]} 31. Bf1 {[%clk 0:01:29]}  Bf5 {[%clk 0:00:31]} 32. Rcd1 {[%clk 0:01:23]}  Be4 {[%clk 0:00:29]} 33. Rd8 {[%clk 0:01:22]}  Rf5 {[%clk 0:00:29]} 34. Rxf8+ {[%clk 0:01:20]}  Rxf8 {[%clk 0:00:29]} 35. Be2 {[%clk 0:01:20]}  a4 {[%clk 0:00:25]} 36. Rd7 {[%clk 0:01:18]}  axb3 {[%clk 0:00:23]} 37. axb3 {[%clk 0:01:18]}  b6 {[%clk 0:00:16]} 38. Rd6 {[%clk 0:01:15]}  Rb8 {[%clk 0:00:12]} 39. b4 {[%clk 0:01:11]}  Kf7 {[%clk 0:00:11]} 40. Rd7+ {[%clk 0:01:08]}  Kf6 {[%clk 0:00:10]} 41. Kf2 {[%clk 0:01:05]}  g5 {[%clk 0:00:10]} 42. Bf3 {[%clk 0:01:01]}  Bxf3 {[%clk 0:00:10]} 43. Kxf3 {[%clk 0:01:01]}  Ke6 {[%clk 0:00:11]} 44. Rh7 {[%clk 0:01:00]}  Kf5 {[%clk 0:00:11]} 45. Rxh6 {[%clk 0:00:58]}  g4+ {[%clk 0:00:12]} 46. Ke2 {[%clk 0:00:58]}  Ke4 {[%clk 0:00:13]} 47. Rg6 {[%clk 0:00:57]}  Kf5 {[%clk 0:00:13]} 48. Rc6 {[%clk 0:00:54]}  Ke4 {[%clk 0:00:13]} 49. Rg6 {[%clk 0:00:46]}  Kf5 {[%clk 0:00:13]} 50. Rg7 {[%clk 0:00:46]}  Rc8 {[%clk 0:00:13]} 51. Kd3 {[%clk 0:00:46]}  Rd8+ {[%clk 0:00:14]} 52. Kc3 {[%clk 0:00:45]}  Rh8 {[%clk 0:00:15]} 53. h3 {[%clk 0:00:38]}  gxh3 {[%clk 0:00:15]} 54. gxh3 {[%clk 0:00:38]}  Rxh3 {[%clk 0:00:16]} 55. Kd3 {[%clk 0:00:39]}  e4+ {[%clk 0:00:16]} 56. Kd4 {[%clk 0:00:38]}  Rh1 {[%clk 0:00:17]} 57. Rf7+ {[%clk 0:00:37]}  Ke6 {[%clk 0:00:17]} 58. Rf4 {[%clk 0:00:36]}  Rb1 {[%clk 0:00:17]} 59. b5 {[%clk 0:00:36]}  Kd6 {[%clk 0:00:17]} 60. Rxe4 {[%clk 0:00:36]}  Rd1+ {[%clk 0:00:18]} 61. Kc3 {[%clk 0:00:35]}  Re1 {[%clk 0:00:19]} 62. Kd3 {[%clk 0:00:33]}  Rd1+ {[%clk 0:00:19]} 63. Kc2 {[%clk 0:00:32]}  Re1 {[%clk 0:00:19]} 64. Kb3 {[%clk 0:00:30]}  Rb1+ {[%clk 0:00:20]} 65. Kc2 {[%clk 0:00:30]}  Re1 {[%clk 0:00:20]} 66. Re8 {[%clk 0:00:30]}  Kc5 {[%clk 0:00:20]} 67. Rc8+ {[%clk 0:00:26]}  Kb4 {[%clk 0:00:20]} 68. Rc6 {[%clk 0:00:26]}  Rxe3 {[%clk 0:00:19]} 69. Kd2 {[%clk 0:00:26]}  Rh3 {[%clk 0:00:19]} 70. Kc2 {[%clk 0:00:26]}  Rg3 {[%clk 0:00:19]} 71. Kd2 {[%clk 0:00:26]}  Rh3 {[%clk 0:00:18]} 72. Kc2 {[%clk 0:00:22]}  Rc3+ {[%clk 0:00:18]} 73. Kb2 {[%clk 0:00:20]}  Rxc4 {[%clk 0:00:18]} 74. Rxb6 {[%clk 0:00:19]}  Kc5 {[%clk 0:00:18]} 75. Rb8 {[%clk 0:00:16]}  Rb4+ {[%clk 0:00:18]} 76. Kc3 {[%clk 0:00:16]}  Rxb5 {[%clk 0:00:18]} 77. Rxb5+ {[%clk 0:00:15]}  Kxb5 {[%clk 0:00:19]} 1/2-1/2


[Site "https://www.chess.com"]

[Event "Titled Tuesday Blitz December 13 Early 2022"]
[White "Kirillov, Dmitry"]
[Black "Gareyev, Timur"]
[WhiteFideId "34180572"]
[BlackFideId "14200937"]
[WhiteElo "2111"]
[BlackElo "2553"]
[Result "0-1"]
[Round "01"]
[TimeControl "180+1"]
[Date "2022.12.14"]
[WhiteClock "0:00:08"]
[BlackClock "0:01:14"]

1. e4 {[%clk 0:02:55]}  e5 {[%clk 0:02:58]} 2. Nf3 {[%clk 0:02:55]}  Nc6 {[%clk 0:02:58]} 3. d4 {[%clk 0:02:55]}  exd4 {[%clk 0:02:56]} 4. c3 {[%clk 0:02:56]}  dxc3 {[%clk 0:02:52]} 5. Nxc3 {[%clk 0:02:57]}  d6 {[%clk 0:02:36]} 6. Bc4 {[%clk 0:02:56]}  Na5 {[%clk 0:02:36]} 7. Bxf7+ {[%clk 0:02:47]}  Kxf7 {[%clk 0:02:37]} 8. Qd5+ {[%clk 0:02:47]}  Ke8 {[%clk 0:02:34]} 9. Qxa5 {[%clk 0:02:46]}  c6 {[%clk 0:02:33]} 10. Qxd8+ {[%clk 0:02:34]}  Kxd8 {[%clk 0:02:34]} 11. Bf4 {[%clk 0:02:34]}  Nf6 {[%clk 0:02:34]} 12. O-O-O {[%clk 0:02:35]}  Ne8 {[%clk 0:02:35]} 13. Ng5 {[%clk 0:01:22]}  Ke7 {[%clk 0:02:32]} 14. Rhe1 {[%clk 0:01:18]}  h6 {[%clk 0:02:27]} 15. Nf3 {[%clk 0:01:09]}  g5 {[%clk 0:02:27]} 16. Be3 {[%clk 0:01:02]}  Bg4 {[%clk 0:02:20]} 17. h3 {[%clk 0:01:02]}  Bxf3 {[%clk 0:02:14]} 18. gxf3 {[%clk 0:01:03]}  Bg7 {[%clk 0:02:14]} 19. f4 {[%clk 0:01:02]}  gxf4 {[%clk 0:02:07]} 20. Bxf4 {[%clk 0:01:03]}  Be5 {[%clk 0:02:00]} 21. Bg3 {[%clk 0:00:50]}  Bxg3 {[%clk 0:01:59]} 22. fxg3 {[%clk 0:00:51]}  Nc7 {[%clk 0:01:49]} 23. g4 {[%clk 0:00:45]}  h5 {[%clk 0:01:47]} 24. g5 {[%clk 0:00:44]}  h4 {[%clk 0:01:46]} 25. Rg1 {[%clk 0:00:45]}  Ne6 {[%clk 0:01:41]} 26. Rg4 {[%clk 0:00:43]}  Raf8 {[%clk 0:01:41]} 27. Rd3 {[%clk 0:00:16]}  Rf4 {[%clk 0:01:37]} 28. Rxf4 {[%clk 0:00:14]}  Nxf4 {[%clk 0:01:37]} 29. Rf3 {[%clk 0:00:15]}  Ne6 {[%clk 0:01:38]} 30. g6 {[%clk 0:00:15]}  Rf8 {[%clk 0:01:31]} 31. Rxf8 {[%clk 0:00:13]}  Kxf8 {[%clk 0:01:31]} 32. Ne2 {[%clk 0:00:11]}  Kg7 {[%clk 0:01:30]} 33. Kd2 {[%clk 0:00:09]}  Kxg6 {[%clk 0:01:21]} 34. Ke3 {[%clk 0:00:09]}  Kf6 {[%clk 0:01:17]} 35. b3 {[%clk 0:00:08]}  Ke5 {[%clk 0:01:15]} 36. Ng1 {[%clk 0:00:09]}  Ng5 {[%clk 0:01:15]} 37. a3 {[%clk 0:00:08]}  a5 {[%clk 0:01:14]} 38. a4 {[%clk 0:00:08]}  b5 {[%clk 0:01:14]} 0-1


[Site "https://www.chess.com"]

[Event "Titled Tuesday Blitz December 13 Early 2022"]
[White "Kleiman, Jake"]
[Black "Yirik, Volkan"]
[WhiteFideId "2020041"]
[BlackFideId "6300782"]
[WhiteElo "2587"]
[BlackElo "1902"]
[Result "0-1"]
[Round "01"]
[TimeControl "180+1"]
[Date "2022.12.14"]
[WhiteClock "0:00:10"]
[BlackClock "0:01:35"]

1. e4 {[%clk 0:02:58]}  g6 {[%clk 0:02:59]} 2. Nf3 {[%clk 0:02:58]}  Bg7 {[%clk 0:03:00]} 3. d4 {[%clk 0:02:58]}  c5 {[%clk 0:03:01]} 4. c3 {[%clk 0:02:57]}  cxd4 {[%clk 0:03:01]} 5. cxd4 {[%clk 0:02:58]}  d5 {[%clk 0:03:01]} 6. e5 {[%clk 0:02:58]}  Bg4 {[%clk 0:03:00]} 7. Nc3 {[%clk 0:02:57]}  e6 {[%clk 0:02:58]} 8. Qa4+ {[%clk 0:02:53]}  Nc6 {[%clk 0:02:57]} 9. Nb5 {[%clk 0:02:36]}  Bxf3 {[%clk 0:02:55]} 10. Nd6+ {[%clk 0:02:35]}  Kf8 {[%clk 0:02:54]} 11. gxf3 {[%clk 0:02:35]}  Bxe5 {[%clk 0:02:50]} 12. dxe5 {[%clk 0:02:33]}  Nxe5 {[%clk 0:02:51]} 13. Qa3 {[%clk 0:01:42]}  Qe7 {[%clk 0:02:47]} 14. Be2 {[%clk 0:01:34]}  Kg7 {[%clk 0:02:42]} 15. Be3 {[%clk 0:01:25]}  Nc6 {[%clk 0:02:39]} 16. Nb5 {[%clk 0:01:13]}  Qxa3 {[%clk 0:02:33]} 17. Nxa3 {[%clk 0:01:14]}  Nge7 {[%clk 0:02:31]} 18. O-O-O {[%clk 0:01:13]}  Nf5 {[%clk 0:02:29]} 19. Kb1 {[%clk 0:01:13]}  d4 {[%clk 0:02:27]} 20. Bd2 {[%clk 0:01:11]}  Rhd8 {[%clk 0:02:27]} 21. Bd3 {[%clk 0:01:12]}  Nh4 {[%clk 0:02:26]} 22. Be4 {[%clk 0:01:11]}  Ne5 {[%clk 0:02:25]} 23. Bg5 {[%clk 0:01:11]}  Nhxf3 {[%clk 0:02:21]} 24. Bxd8 {[%clk 0:01:10]}  Rxd8 {[%clk 0:02:22]} 25. Bxf3 {[%clk 0:01:10]}  Nxf3 {[%clk 0:02:22]} 26. h4 {[%clk 0:01:07]}  e5 {[%clk 0:02:22]} 27. Rh3 {[%clk 0:01:07]}  e4 {[%clk 0:02:22]} 28. Rxf3 {[%clk 0:01:05]}  exf3 {[%clk 0:02:22]} 29. Rd3 {[%clk 0:01:04]}  Kh6 {[%clk 0:02:20]} 30. Kc1 {[%clk 0:01:01]}  Kh5 {[%clk 0:02:19]} 31. Rxf3 {[%clk 0:01:01]}  f5 {[%clk 0:02:19]} 32. Rf4 {[%clk 0:01:00]}  d3 {[%clk 0:02:17]} 33. Kd2 {[%clk 0:01:00]}  Re8 {[%clk 0:02:17]} 34. Kxd3 {[%clk 0:01:00]}  Rd8+ {[%clk 0:02:17]} 35. Ke2 {[%clk 0:00:58]}  Rc8 {[%clk 0:02:09]} 36. Rb4 {[%clk 0:00:55]}  b6 {[%clk 0:02:08]} 37. Nb5 {[%clk 0:00:53]}  a5 {[%clk 0:02:07]} 38. Rd4 {[%clk 0:00:49]}  Rc2+ {[%clk 0:02:06]} 39. Kf3 {[%clk 0:00:48]}  Rxb2 {[%clk 0:02:06]} 40. a4 {[%clk 0:00:47]}  h6 {[%clk 0:02:03]} 41. Kg3 {[%clk 0:00:44]}  Rb3+ {[%clk 0:02:02]} 42. f3 {[%clk 0:00:44]}  g5 {[%clk 0:02:03]} 43. hxg5 {[%clk 0:00:44]}  hxg5 {[%clk 0:02:04]} 44. Nd6 {[%clk 0:00:42]}  f4+ {[%clk 0:01:58]} 45. Kg2 {[%clk 0:00:42]}  Rb2+ {[%clk 0:01:58]} 46. Kh3 {[%clk 0:00:43]}  Rb3 {[%clk 0:01:58]} 47. Kg2 {[%clk 0:00:41]}  Rb2+ {[%clk 0:01:58]} 48. Kf1 {[%clk 0:00:41]}  Rb3 {[%clk 0:01:57]} 49. Ke2 {[%clk 0:00:40]}  Kh4 {[%clk 0:01:54]} 50. Ne4 {[%clk 0:00:37]}  Re3+ {[%clk 0:01:52]} 51. Kf2 {[%clk 0:00:37]}  Ra3 {[%clk 0:01:53]} 52. Rd8 {[%clk 0:00:35]}  Kh5 {[%clk 0:01:47]} 53. Rd6 {[%clk 0:00:32]}  Rxa4 {[%clk 0:01:45]} 54. Nf6+ {[%clk 0:00:32]}  Kh4 {[%clk 0:01:45]} 55. Rxb6 {[%clk 0:00:29]}  Ra2+ {[%clk 0:01:44]} 56. Kf1 {[%clk 0:00:28]}  Kg3 {[%clk 0:01:45]} 57. Ne4+ {[%clk 0:00:28]}  Kxf3 {[%clk 0:01:45]} 58. Nxg5+ {[%clk 0:00:29]}  Kg4 {[%clk 0:01:45]} 59. Ne4 {[%clk 0:00:28]}  a4 {[%clk 0:01:44]} 60. Ra6 {[%clk 0:00:27]}  a3 {[%clk 0:01:44]} 61. Nc3 {[%clk 0:00:24]}  Ra1+ {[%clk 0:01:43]} 62. Kf2 {[%clk 0:00:25]}  Rc1 {[%clk 0:01:38]} 63. Rxa3 {[%clk 0:00:24]}  Rc2+ {[%clk 0:01:39]} 64. Kf1 {[%clk 0:00:24]}  f3 {[%clk 0:01:39]} 65. Rb3 {[%clk 0:00:21]}  Kg3 {[%clk 0:01:36]} 66. Ne4+ {[%clk 0:00:21]}  Kf4 {[%clk 0:01:36]} 67. Nf2 {[%clk 0:00:19]}  Rc1+ {[%clk 0:01:36]} 68. Nd1 {[%clk 0:00:19]}  Rxd1+ {[%clk 0:01:36]} 69. Kf2 {[%clk 0:00:20]}  Rd2+ {[%clk 0:01:36]} 70. Kf1 {[%clk 0:00:20]}  Kg3 {[%clk 0:01:36]} 71. Kg1 {[%clk 0:00:10]}  Rd1# {[%clk 0:01:35]} 0-1


[Site "https://www.chess.com"]

[Event "Titled Tuesday Blitz December 13 Early 2022"]
[White "Kopylov, Alexander A."]
[Black "Baches Garcia, Guillermo"]
[WhiteFideId "4164857"]
[BlackFideId "2209764"]
[WhiteElo "2436"]
[BlackElo "2460"]
[Result "1-0"]
[Round "01"]
[TimeControl "180+1"]
[Date "2022.12.14"]
[WhiteClock "0:02:44"]
[BlackClock "0:00:13"]

1. e4 {[%clk 0:03:00]}  c5 {[%clk 0:03:00]} 2. Nf3 {[%clk 0:03:00]}  d6 {[%clk 0:03:00]} 3. Bb5+ {[%clk 0:02:59]}  Bd7 {[%clk 0:03:00]} 4. a4 {[%clk 0:02:59]}  Nf6 {[%clk 0:02:58]} 5. Nc3 {[%clk 0:02:59]}  g6 {[%clk 0:02:56]} 6. e5 {[%clk 0:02:58]}  dxe5 {[%clk 0:02:54]} 7. Nxe5 {[%clk 0:02:59]}  Bg7 {[%clk 0:02:52]} 8. Qf3 {[%clk 0:02:59]}  Qc7 {[%clk 0:02:27]} 9. Nxd7 {[%clk 0:02:58]}  Nbxd7 {[%clk 0:02:23]} 10. O-O {[%clk 0:02:59]}  O-O {[%clk 0:02:23]} 11. d3 {[%clk 0:02:57]}  a6 {[%clk 0:02:13]} 12. Bxd7 {[%clk 0:02:54]}  Nxd7 {[%clk 0:02:03]} 13. Re1 {[%clk 0:02:55]}  e6 {[%clk 0:02:02]} 14. Bf4 {[%clk 0:02:55]}  Qb6 {[%clk 0:01:47]} 15. Rab1 {[%clk 0:02:55]}  Rad8 {[%clk 0:01:40]} 16. Ne4 {[%clk 0:02:55]}  Ne5 {[%clk 0:01:31]} 17. Qg3 {[%clk 0:02:51]}  Qc7 {[%clk 0:01:20]} 18. Nd2 {[%clk 0:02:48]}  Rd5 {[%clk 0:01:08]} 19. Nc4 {[%clk 0:02:48]}  f6 {[%clk 0:00:57]} 20. Nxe5 {[%clk 0:02:47]}  fxe5 {[%clk 0:00:56]} 21. Be3 {[%clk 0:02:48]}  b5 {[%clk 0:00:49]} 22. axb5 {[%clk 0:02:47]}  axb5 {[%clk 0:00:49]} 23. b3 {[%clk 0:02:45]}  c4 {[%clk 0:00:48]} 24. bxc4 {[%clk 0:02:45]}  bxc4 {[%clk 0:00:49]} 25. Qg4 {[%clk 0:02:46]}  cxd3 {[%clk 0:00:29]} 26. cxd3 {[%clk 0:02:46]}  Rxd3 {[%clk 0:00:26]} 27. Qxe6+ {[%clk 0:02:46]}  Qf7 {[%clk 0:00:26]} 28. Qc6 {[%clk 0:02:47]}  Qf6 {[%clk 0:00:13]} 29. Qc4+ {[%clk 0:02:44]} 1-0


[Site "https://www.chess.com"]